Workbook

Sheet Weekly totals
B2: Återköp Investment AB Spiltan ("Spiltan Invest")
B4: Datum | C4: Antal återköpta aktier | D4: Pris | E4: Spiltans innehav av egna aktier | F4: Antal aktier i Spiltan
B5: 2024-07-23 | C5: 4000 | D5: 194.8 | E5: 4000 | F5: 31057801
B6: 2024-07-24 | C6: 5000 | D6: 195.4882 | E6: 9000 | F6: 31057801
B7: 2024-07-25 | C7: 5000 | D7: 198.426 | E7: 14000 | F7: 31057801
B8: 2024-07-26 | C8: 5000 | D8: 199.9861 | E8: 19000 | F8: 31057801
B9: 2024-08-05 | C9: 5000 | D9: 191.0445 | E9: 24000 | F9: 31057801
B10: 2024-08-06 | C10: 5000 | D10: 195.2439 | E10: 29000 | F10: 31057801
B11: 2024-08-07 | C11: 5000 | D11: 197.496 | E11: 34000 | F11: 31057801
B12: 2024-08-08 | C12: 6000 | D12: 197.3175 | E12: 40000 | F12: 31057801
B13: 2024-08-09 | C13: 6000 | D13: 198.5776 | E13: 46000 | F13: 31057801
B14: 2024-08-14 | C14: 5000 | D14: 197.5514 | E14: 51000 | F14: 31057801
B15: 2024-08-15 | C15: 5000 | D15: 197.46404 | E15: 56000 | F15: 31057801
B16: 2024-08-16 | C16: 5000 | D16: 197.06676 | E16: 61000 | F16: 31057801
B17: 2024-08-19 | C17: 5000 | D17: 198.4948 | E17: 66000 | F17: 31057801
B18: 2024-08-20 | C18: 5000 | D18: 197.9515 | E18: 71000 | F18: 31057801
B19: 2024-08-21 | C19: 5000 | D19: 197.9397 | E19: 76000 | F19: 31057801
B20: 2024-08-22 | C20: 5000 | D20: 198.0898 | E20: 81000 | F20: 31057801
B21: 2024-08-23 | C21: 4000 | D21: 198.2517 | E21: 85000 | F21: 31057801
B22: 2024-08-26 | C22: 4000 | D22: 198.5774 | E22: =E21+Table2[[#This Row],[Antal återköpta aktier]] -> 89000 | F22: 31057801
B23: 2024-08-27 | C23: 4000 | D23: 198.1317 | E23: =E22+Table2[[#This Row],[Antal återköpta aktier]] -> 93000 | F23: 31057801
B24: 2024-08-28 | C24: 4000 | D24: 198.2073 | E24: =E23+Table2[[#This Row],[Antal återköpta aktier]] -> 97000 | F24: 31057801
B25: 2024-08-29 | C25: 3000 | D25: 198.1529 | E25: =E24+Table2[[#This Row],[Antal återköpta aktier]] -> 100000 | F25: 31057801
B26: 2024-08-30 | C26: 3000 | D26: 197.1875 | E26: =E25+Table2[[#This Row],[Antal återköpta aktier]] -> 103000 | F26: 31057801
B27: 2024-09-02 | C27: 3000 | D27: 197.6588 | E27: =E26+Table2[[#This Row],[Antal återköpta aktier]] -> 106000 | F27: 31057801
B28: 2024-09-03 | C28: 3000 | D28: 197.8397 | E28: =E27+Table2[[#This Row],[Antal återköpta aktier]] -> 109000 | F28: 31057801
B29: 2024-09-04 | C29: 3000 | D29: 197.8266 | E29: =E28+Table2[[#This Row],[Antal återköpta aktier]] -> 112000 | F29: 31057801
B30: 2024-09-05 | C30: 2000 | D30: 197.1053 | E30: =E29+Table2[[#This Row],[Antal återköpta aktier]] -> 114000 | F30: 31057801
B31: 2024-09-06 | C31: 2000 | D31: 196.7235 | E31: =E30+Table2[[#This Row],[Antal återköpta aktier]] -> 116000 | F31: 31057801
B32: 2024-09-09 | C32: 2000 | D32: 196.3878 | E32: =E31+Table2[[#This Row],[Antal återköpta aktier]] -> 118000 | F32: 31057801
B33: 2024-09-10 | C33: 2000 | D33: 199.0586 | E33: =E32+Table2[[#This Row],[Antal återköpta aktier]] -> 120000 | F33: 31057801
B34: 2024-10-14 | C34: 109700 | D34: 233.0116 | E34: =E33+Table2[[#This Row],[Antal återköpta aktier]] -> 229700 | F34: 31057801
B35: 2024-10-15 | C35: 100000 | D35: 231.5 | E35: =E34+Table2[[#This Row],[Antal återköpta aktier]] -> 329700 | F35: 31057801
B36: 2024-10-16 | C36: 5000 | D36: 231.4894 | E36: =E35+Table2[[#This Row],[Antal återköpta aktier]] -> 334700 | F36: 31057801
B37: 2024-10-17 | C37: 6000 | D37: 232.4223 | E37: =E36+Table2[[#This Row],[Antal återköpta aktier]] -> 340700 | F37: 31057801
B38: 2024-10-18 | C38: 5000 | D38: 235.3427 | E38: =E37+Table2[[#This Row],[Antal återköpta aktier]] -> 345700 | F38: 31057801
B39: 2024-10-21 | C39: 155993 | D39: 236.0168 | E39: =E38+Table2[[#This Row],[Antal återköpta aktier]] -> 501693 | F39: 31057801
B40: 2024-10-22 | C40: 5000 | D40: 238.0894 | E40: =E39+Table2[[#This Row],[Antal återköpta aktier]] -> 506693 | F40: 31057801
B41: 2024-10-23 | C41: 4810 | D41: 238.3761 | E41: =E40+Table2[[#This Row],[Antal återköpta aktier]] -> 511503 | F41: 31057801
B42: 2024-10-24 | C42: 5000 | D42: 237.7729 | E42: =E41+Table2[[#This Row],[Antal återköpta aktier]] -> 516503 | F42: 31057801
B43: 2024-10-25 | C43: 20435 | D43: 235.1784 | E43: =E42+Table2[[#This Row],[Antal återköpta aktier]] -> 536938 | F43: 31057801
B44: 2024-10-28 | C44: 5000 | D44: 237.3072 | E44: =E43+Table2[[#This Row],[Antal återköpta aktier]] -> 541938 | F44: 31057801
B45: 2024-10-29 | C45: 6000 | D45: 240.77675 | E45: =E44+Table2[[#This Row],[Antal återköpta aktier]] -> 547938 | F45: 31057801
B46: 2024-10-30 | C46: 6000 | D46: 240.2583333 | E46: =E45+Table2[[#This Row],[Antal återköpta aktier]] -> 553938 | F46: 31057801
B47: 2024-10-31 | C47: 5000 | D47: 238.7932 | E47: =E46+Table2[[#This Row],[Antal återköpta aktier]] -> 558938 | F47: 31057801
B48: 2024-11-01 | C48: 3000 | D48: 243.0918333 | E48: =E47+Table2[[#This Row],[Antal återköpta aktier]] -> 561938 | F48: 31057801
B49: 2024-11-04 | C49: 5000 | D49: 240.2693 | E49: =E48+Table2[[#This Row],[Antal återköpta aktier]] -> 566938 | F49: 31057801
B50: 2024-11-05 | C50: 5000 | D50: 238.5644 | E50: =E49+Table2[[#This Row],[Antal återköpta aktier]] -> 571938 | F50: 31057801
B51: 2024-11-06 | C51: 5000 | D51: 243.0848 | E51: =E50+Table2[[#This Row],[Antal återköpta aktier]] -> 576938 | F51: 31057801
B52: 2024-11-07 | C52: 24000 | D52: 243.0644167 | E52: =E51+Table2[[#This Row],[Antal återköpta aktier]] -> 600938 | F52: 31057801
B53: 2024-11-08 | C53: 45000 | D53: 241.5352 | E53: =E52+Table2[[#This Row],[Antal återköpta aktier]] -> 645938 | F53: 31057801
B54: 2024-11-11 | C54: 5000 | D54: 238.7182 | E54: =E53+Table2[[#This Row],[Antal återköpta aktier]] -> 650938 | F54: 31057801
B55: 2024-11-12 | C55: 5000 | D55: 229.3417 | E55: =E54+Table2[[#This Row],[Antal återköpta aktier]] -> 655938 | F55: 31057801
B56: 2024-11-13 | C56: 6000 | D56: 227.27425 | E56: =E55+Table2[[#This Row],[Antal återköpta aktier]] -> 661938 | F56: 31057801
B57: 2024-11-14 | C57: 6000 | D57: 232.9729167 | E57: =E56+Table2[[#This Row],[Antal återköpta aktier]] -> 667938 | F57: 31057801
B58: 2024-11-15 | C58: 5000 | D58: 235.9666 | E58: =E57+Table2[[#This Row],[Antal återköpta aktier]] -> 672938 | F58: 31057801
B59: 2024-11-18 | C59: 5000 | D59: 236.4978 | E59: =E58+Table2[[#This Row],[Antal återköpta aktier]] -> 677938 | F59: 31057801
B60: 2024-11-19 | C60: 39479 | D60: 235.5495 | E60: =E59+Table2[[#This Row],[Antal återköpta aktier]] -> 717417 | F60: 31057801
B61: 2024-11-20 | C61: 5000 | D61: 237.284 | E61: =E60+Table2[[#This Row],[Antal återköpta aktier]] -> 722417 | F61: 31057801
B62: 2024-11-21 | C62: 5000 | D62: 235.3733 | E62: =E61+Table2[[#This Row],[Antal återköpta aktier]] -> 727417 | F62: 31057801
B63: 2024-11-22 | C63: 5000 | D63: 235.0713 | E63: =E62+Table2[[#This Row],[Antal återköpta aktier]] -> 732417 | F63: 31057801
B64: 2024-11-25 | C64: 5000 | D64: 235.5693 | E64: =E63+Table2[[#This Row],[Antal återköpta aktier]] -> 737417 | F64: 31057801
B65: 2024-11-26 | C65: 4000 | D65: 233.020875 | E65: =E64+Table2[[#This Row],[Antal återköpta aktier]] -> 741417 | F65: 31057801
B66: 2024-11-27 | C66: 4000 | D66: 233.060875 | E66: =E65+Table2[[#This Row],[Antal återköpta aktier]] -> 745417 | F66: 31057801
B67: 2024-11-28 | C67: 4000 | D67: 233.843 | E67: =E66+Table2[[#This Row],[Antal återköpta aktier]] -> 749417 | F67: 31057801
B68: 2024-11-29 | C68: 4000 | D68: 237.98125 | E68: =E67+Table2[[#This Row],[Antal återköpta aktier]] -> 753417 | F68: 31057801
B69: 2024-12-02 | C69: 5000 | D69: 239.2584 | E69: =E68+Table2[[#This Row],[Antal återköpta aktier]] -> 758417 | F69: 31057801
B70: 2024-12-03 | C70: 4000 | D70: 238.287375 | E70: =E69+Table2[[#This Row],[Antal återköpta aktier]] -> 762417 | F70: 31057801
B71: 2024-12-04 | C71: 4000 | D71: 236.611625 | E71: =E70+Table2[[#This Row],[Antal återköpta aktier]] -> 766417 | F71: 31057801
B72: 2024-12-05 | C72: 4000 | D72: 237.0645 | E72: =E71+Table2[[#This Row],[Antal återköpta aktier]] -> 770417 | F72: 31057801
B73: 2024-12-06 | C73: 4000 | D73: 238.250375 | E73: =E72+Table2[[#This Row],[Antal återköpta aktier]] -> 774417 | F73: 31057801
B74: 2024-12-09 | C74: 4000 | D74: 234.571875 | E74: =E73+Table2[[#This Row],[Antal återköpta aktier]] -> 778417 | F74: 31057801
B75: 2024-12-10 | C75: 24000 | D75: 233.1379 | E75: =E74+Table2[[#This Row],[Antal återköpta aktier]] -> 802417 | F75: 31057801
B76: 2024-12-11 | C76: 4000 | D76: 233.508375 | E76: =E75+Table2[[#This Row],[Antal återköpta aktier]] -> 806417 | F76: 31057801
B77: 2024-12-12 | C77: 3699 | D77: 234.8459043 | E77: =E76+Table2[[#This Row],[Antal återköpta aktier]] -> 810116 | F77: 31057801
B78: 2024-12-13 | C78: 4000 | D78: 233.773625 | E78: =E77+Table2[[#This Row],[Antal återköpta aktier]] -> 814116 | F78: 31057801
B79: 2024-12-16 | C79: 4000 | D79: 233.987125 | E79: =E78+Table2[[#This Row],[Antal återköpta aktier]] -> 818116 | F79: 31057801
B80: 2024-12-17 | C80: 4000 | D80: 232.3235 | E80: =E79+Table2[[#This Row],[Antal återköpta aktier]] -> 822116 | F80: 31057801
B81: 2024-12-18 | C81: 4000 | D81: 232.63425 | E81: =E80+Table2[[#This Row],[Antal återköpta aktier]] -> 826116 | F81: 31057801
B82: 2024-12-19 | C82: 4000 | D82: 231.5155 | E82: =E81+Table2[[#This Row],[Antal återköpta aktier]] -> 830116 | F82: 31057801
B83: 2024-12-20 | C83: 4000 | D83: 227.99375 | E83: =E82+Table2[[#This Row],[Antal återköpta aktier]] -> 834116 | F83: 31057801
B84: 2025-01-27 | C84: 45000 | D84: 224.4733 | E84: =E83+Table2[[#This Row],[Antal återköpta aktier]] -> 879116 | F84: 31057801
B85: 2025-01-28 | C85: 54000 | D85: 221.4366 | E85: =E84+Table2[[#This Row],[Antal återköpta aktier]] -> 933116 | F85: 31057801
B86: 2025-01-29 | C86: 4226 | D86: 219.6609 | E86: =E85+Table2[[#This Row],[Antal återköpta aktier]] -> 937342 | F86: 31057801
B87: 2025-01-30 | C87: 3749 | D87: 220.6395 | E87: =E86+Table2[[#This Row],[Antal återköpta aktier]] -> 941091 | F87: 31057801
B88: 2025-01-31 | C88: 4000 | D88: 225.2691 | E88: =E87+Table2[[#This Row],[Antal återköpta aktier]] -> 945091 | F88: 31057801
B89: 2025-02-03 | C89: 4000 | D89: 229.542375 | E89: =E88+Table2[[#This Row],[Antal återköpta aktier]] -> 949091 | F89: 31057801
B90: 2025-02-04 | C90: 4000 | D90: 231.737 | E90: =E89+Table2[[#This Row],[Antal återköpta aktier]] -> 953091 | F90: 31057801
B91: 2025-02-05 | C91: 4000 | D91: 225.989375 | E91: =E90+Table2[[#This Row],[Antal återköpta aktier]] -> 957091 | F91: 31057801
B92: 2025-02-06 | C92: 4000 | D92: 227.789625 | E92: =E91+Table2[[#This Row],[Antal återköpta aktier]] -> 961091 | F92: 31057801
B93: 2025-02-07 | C93: 4000 | D93: 224.124375 | E93: =E92+Table2[[#This Row],[Antal återköpta aktier]] -> 965091 | F93: 31057801
B94: 2025-02-10 | C94: 4000 | D94: 230.033875 | E94: =E93+Table2[[#This Row],[Antal återköpta aktier]] -> 969091 | F94: 31057801
B95: 2025-02-11 | C95: 50799 | D95: 228.0287 | E95: =E94+Table2[[#This Row],[Antal återköpta aktier]] -> 1019890 | F95: 31057801
B96: 2025-02-12 | C96: 3748 | D96: 228.2617396 | E96: =E95+Table2[[#This Row],[Antal återköpta aktier]] -> 1023638 | F96: 31057801
B97: 2025-02-13 | C97: 4000 | D97: 229.12825 | E97: =E96+Table2[[#This Row],[Antal återköpta aktier]] -> 1027638 | F97: 31057801
B98: 2025-02-14 | C98: 3622 | D98: 229.9273882 | E98: =E97+Table2[[#This Row],[Antal återköpta aktier]] -> 1031260 | F98: 31057801
B99: 2025-02-17 | C99: 1135 | D99: 227.1770925 | E99: =E98+Table2[[#This Row],[Antal återköpta aktier]] -> 1032395 | F99: 31057801
B100: 2025-02-18 | C100: 624 | D100: 226.3846154 | E100: =E99+Table2[[#This Row],[Antal återköpta aktier]] -> 1033019 | F100: 31057801
B101: 2025-02-19 | C101: 1100 | D101: 224.7163636 | E101: =E100+Table2[[#This Row],[Antal återköpta aktier]] -> 1034119 | F101: 31057801
B102: 2025-02-20 | C102: 1049 | D102: 224.593899 | E102: =E101+Table2[[#This Row],[Antal återköpta aktier]] -> 1035168 | F102: 31057801
B103: 2025-02-21 | C103: 1297 | D103: 224.4730147 | E103: =E102+Table2[[#This Row],[Antal återköpta aktier]] -> 1036465 | F103: 31057801
B104: 2025-02-24 | C104: 1697 | D104: 223.7103712 | E104: =E103+Table2[[#This Row],[Antal återköpta aktier]] -> 1038162 | F104: 31057801
B105: 2025-02-25 | C105: 1053 | D105: 223.3523267 | E105: =E104+Table2[[#This Row],[Antal återköpta aktier]] -> 1039215 | F105: 31057801
B106: 2025-02-26 | C106: 1057 | D106: 222.1494797 | E106: =E105+Table2[[#This Row],[Antal återköpta aktier]] -> 1040272 | F106: 31057801
B107: 2025-02-27 | C107: 740 | D107: 221.1 | E107: =E106+Table2[[#This Row],[Antal återköpta aktier]] -> 1041012 | F107: 31057801
B108: 2025-02-28 | C108: 1060 | D108: 218.7443396 | E108: =E107+Table2[[#This Row],[Antal återköpta aktier]] -> 1042072 | F108: 31057801
B109: 2025-03-03 | C109: 1651 | D109: 217.068746 | E109: =E108+Table2[[#This Row],[Antal återköpta aktier]] -> 1043723 | F109: 31057801
B110: 2025-03-04 | C110: 1704 | D110: 211.727993 | E110: =E109+Table2[[#This Row],[Antal återköpta aktier]] -> 1045427 | F110: 31057801
B111: 2025-03-05 | C111: 2594 | D111: 211.612567 | E111: =E110+Table2[[#This Row],[Antal återköpta aktier]] -> 1048021 | F111: 31057801
B112: 2025-03-06 | C112: 28148 | D112: 209.7252 | E112: =E111+Table2[[#This Row],[Antal återköpta aktier]] -> 1076169 | F112: 31057801
B113: 2025-03-07 | C113: 14652 | D113: 206.8304 | E113: =E112+Table2[[#This Row],[Antal återköpta aktier]] -> 1090821 | F113: 31057801
B114: 2025-04-14 | C114: 2081 | D114: 202.7688611 | E114: =E113+Table2[[#This Row],[Antal återköpta aktier]] -> 1092902 | F114: 31057801
B115: 2025-04-15 | C115: 564 | D115: 205.0859929 | E115: =E114+Table2[[#This Row],[Antal återköpta aktier]] -> 1093466 | F115: 31057801
B116: 2025-04-16 | C116: 1300 | D116: 206.7869231 | E116: =E115+Table2[[#This Row],[Antal återköpta aktier]] -> 1094766 | F116: 31057801
B117: 2025-04-17 | C117: 778 | D117: 208.5359897 | E117: =E116+Table2[[#This Row],[Antal återköpta aktier]] -> 1095544 | F117: 31057801
B118: 2025-04-22 | C118: 985 | D118: 204.8517767 | E118: =E117+Table2[[#This Row],[Antal återköpta aktier]] -> 1096529 | F118: 31057801
B119: 2025-04-23 | C119: 1456 | D119: 207.0576923 | E119: =E118+Table2[[#This Row],[Antal återköpta aktier]] -> 1097985 | F119: 31057801
B120: 2025-04-24 | C120: 110911 | D120: 205.9973628 | E120: =E119+Table2[[#This Row],[Antal återköpta aktier]] -> 1208896 | F120: 31057801
B121: 2025-04-25 | C121: 995 | D121: 209.6638191 | E121: =E120+Table2[[#This Row],[Antal återköpta aktier]] -> 1209891 | F121: 31057801
B122: 2025-07-14 | C122: 54908 | D122: 220.7341 | E122: 173978 | F122: 29966980
B123: 2025-07-15 | C123: 1723 | D123: 219.0356936 | E123: 175701 | F123: 29966980
B124: 2025-07-16 | C124: 680 | D124: 218.8742647 | E124: 176381 | F124: 29966980
B125: 2025-07-17 | C125: 891 | D125: 220.0246914 | E125: 177272 | F125: 29966980
B126: 2025-07-18 | C126: 1950 | D126: 221.1328205 | E126: 179222 | F126: 29966980
B127: 2025-07-21 | C127: 907 | D127: 219.7552371 | E127: 180129 | F127: 29966980
B128: 2025-07-22 | C128: 1533 | D128: 218.9726027 | E128: 181662 | F128: 29966980
B129: 2025-07-23 | C129: 641 | D129: 219.7917317 | E129: 182303 | F129: 29966980
B130: 2025-07-24 | C130: 21011 | D130: 219.9664461 | E130: 203314 | F130: 29966980
B131: 2025-07-25 | C131: 548 | D131: 217.7107664 | E131: 203862 | F131: 29966980
B132: 2025-07-28 | C132: 443 | D132: 218.8442438 | E132: 204305 | F132: 29966980
B133: 2025-07-29 | C133: 677 | D133: 216.7186115 | E133: 204982 | F133: 29966980
B134: 2025-07-30 | C134: 521 | D134: 217.7149712 | E134: 205503 | F134: 29966980
B135: 2025-07-31 | C135: 2643 | D135: 217.810821 | E135: 208146 | F135: 29966980
B136: 2025-08-01 | C136: 1780 | D136: 214.8775281 | E136: 209926 | F136: 29966980
B137: 2025-08-04 | C137: 404 | D137: 214.8985 | E137: 210330 | F137: 29966980
B138: 2025-08-05 | C138: 368 | D138: 215 | E138: 210698 | F138: 29966980
B139: 2025-08-06 | C139: 1506 | D139: 213.2072 | E139: 212204 | F139: 29966980
B140: 2025-08-07 | C140: 1553 | D140: 209.1201 | E140: 213757 | F140: 29966980
B141: 2025-08-08 | C141: 260 | D141: 210.7327 | E141: 214017 | F141: 29966980
B142: 2025-08-11 | C142: 634 | D142: 210.3059937 | E142: 214651 | F142: 29966980
B143: 2025-08-12 | C143: 271 | D143: 209 | E143: 214922 | F143: 29966980
B144: 2025-08-13 | C144: 2431 | D144: 211.4417935 | E144: 217353 | F144: 29966980
B145: 2025-08-14 | C145: 940 | D145: 211.3968085 | E145: 218293 | F145: 29966980
B146: 2025-08-15 | C146: 21900 | D146: 211.7471 | E146: 240193 | F146: 29966980
B147: 2025-08-18 | C147: 1513 | D147: 211.8529 | E147: 241706 | F147: 29966980
B148: 2025-08-19 | C148: 2607 | D148: 212.4789 | E148: 244313 | F148: 29966980
B149: 2025-08-20 | C149: 664 | D149: 212.2929 | E149: 244977 | F149: 29966980
B150: 2025-08-21 | C150: 622 | D150: 212.6359 | E150: 245599 | F150: 29966980
B151: 2025-08-22 | C151: 1945 | D151: 213.7573 | E151: 247544 | F151: 29966980
B152: 2025-08-25 | C152: 2294 | D152: 214.051 | E152: 249838 | F152: 29966980
B153: 2025-08-26 | C153: 2658 | D153: 215.3546 | E153: 252496 | F153: 29966980
B154: 2025-08-27 | C154: 819 | D154: 214.7949 | E154: 253315 | F154: 29966980
B155: 2025-08-28 | C155: 2310 | D155: 212.2054 | E155: 255625 | F155: 29966980
B156: 2025-08-29 | C156: 1988 | D156: 210.833 | E156: 257613 | F156: 29966980
B157: 2025-09-01 | C157: 1164 | D157: 211.631443 | E157: 258777 | F157: 29966980
B158: 2025-09-02 | C158: 22621 | D158: 210.872176 | E158: 281398 | F158: 29966980
B159: 2025-09-03 | C159: 1162 | D159: 210.468158 | E159: 282560 | F159: 29966980
B160: 2025-09-04 | C160: 310 | D160: 210.983871 | E160: 282870 | F160: 29966980
B161: 2025-09-05 | C161: 2755 | D161: 211 | E161: 285625 | F161: 29966980
B162: 2025-09-08 | C162: 22555 | D162: 210.4986 | E162: 308180 | F162: 29966980
B163: 2025-09-09 | C163: 2050 | D163: 209.43 | E163: 310230 | F163: 29966980
B164: 2025-09-10 | C164: 919 | D164: 209.5762 | E164: 311149 | F164: 29966980
B165: 2025-09-11 | C165: 495 | D165: 209.6253 | E165: 311644 | F165: 29966980
B166: 2025-09-12 | C166: 779 | D166: 209.6457 | E166: 312423 | F166: 29966980
B167: 2025-10-16 | C167: 236330 | D167: 196.7011 | E167: 548753 | F167: 29966980
B168: 2025-10-17 | C168: 3114 | D168: 196.9693 | E168: 551867 | F168: 29966980
